{"text_format":"2","workbook":"xlsx","n_sheets":11,"sheets":["A. Eelarve","B. Maksetaotlus","C. KULUARUANDE KOOND","C1. Tööjõukulud","C2. Lähetuskulud"," C3. Sihtrühmaga seotud kulud"," C4. EL avalikustamise kulud","C5. Allhanked","C6. Seadmed, kinnisvara","C7. Muud otsesed kulud","Nähtamatu leht"],"not_rendered":{"charts":0,"images":4,"macros":0,"external_links":0,"defined_names":4,"comments":0,"pivot_tables":0},"unopened":[],"bounds":{"document_bytes":16777216,"sheet_cells":100000,"run_cost":"one","rows_first":2000,"rows_last":500,"rows_between":2000,"halvings":0,"cell_chars":16384,"cell_head_chars":4096},"cells_cut":0,"cells_raw":0,"read":"whole","date_system":"1900"}

{"sheet":"A. Eelarve","index":0,"n_rows":75,"n_cols":7,"rows_kept":75,"cut":false,"hidden":false,"merged":[[48,7,49,7],[50,7,51,7],[9,0,9,1],[16,0,16,1],[31,0,31,1],[18,0,18,1],[4,1,4,3],[74,0,74,5],[19,0,19,1],[27,0,27,1],[29,0,29,1],[60,1,60,5],[47,1,47,5],[52,1,52,5],[54,1,54,5],[72,0,72,5],[73,0,73,5],[28,0,28,1],[38,0,38,1]]}
[]
[]
["VARJUPAIGA-, RÄNDE- JA INTEGRATSIOONIFOND",null,null,"Lisa 2"]
["Toetuse taotleja:","Sisekaitseakadeemia"]
["Projekti pealkiri:","MIGRIB - usulisest, kultuurilisest ja rändetaustast lähtuv riskikäitumine: äratundmine, ennetamine, maandamine"]
["Projekti planeeritav algus:","2016-08-01"]
["Projekti planeeritav lõpp:","2017-06-30"]
["Projekti valdkond:","Varjupaik"]
[]
["Tabel 1. Projekti tulud allikate lõikes (EUR)"]
[null,"Rahastamisallikas","Summa","Osakaal %"]
[1,"AMIF",{"$f":"IF(D12=75,ROUNDDOWN($C$30*D12/100,2),ROUND($C$30*D12/100,2))","v":24374.99},75]
[2,"Riiklik kaasfinantseering",{"$f":"ROUND($C$30*D13/100,2)","v":8125},25]
[3,"Toetuse saaja omafinanantseering",{"$f":"ROUND($C$30*D14/100,2)","v":0}]
[4,"Partnerite poolne kaasfinantseering",{"$f":"ROUND($C$30*D15/100,2)","v":0}]
[5,"Projekti käigus saadud muud sissetulekud",{"$f":"ROUND($C$30*D16/100,2)","v":0}]
["PROJEKTI MAKSUMUS KOKKU",null,{"$f":"SUM(C12:C16)","v":32499.99},{"$f":"SUM(D12:D16)","v":100}]
[]
["Tabel 2. Projekti kululiikide koondtabel (EUR)"]
["KOOND",null,"KOKKU","% kogukuludest"]
["Tööjõukulud",null,{"$f":"G48","v":20665.82},{"$f":"IFERROR((ROUND(C21/$C$28*100,2)),0)","v":68.040000000000006}]
["Lähetuskulud",null,{"$f":"G53","v":2000},6.58]
["Sihtrühmadega seotud tegevused",null,{"$f":"G55","v":6908},22.74]
["EL avalikustamise tegevused",null,{"$f":"G61","v":800},2.63]
["Allhanked",null,{"$f":"G64","v":0},0]
["Seadmed, kinnisvara",null,{"$f":"G67","v":0},0]
["Muud otsesed kulud",null,{"$f":"G70","v":0},0]
["Otsesed kulud kokku",null,{"$f":"SUM(C21:C27)","v":30373.82}]
["Kaudsed kulud",null,{"$f":"G74","v":2126.1674000000003}]
["Projekti kulud kokku",null,{"$f":"SUM(C28:C29)","v":32499.987399999998}]
[]
["Tabel 3. Projekti kulude prognoos valdkondade lõikes (EUR) (kui kohaldub)"]
[null,"KOKKU"]
["Varjupaik",32499.99]
["Integratsioon",0]
["Tagasipöördumine",0]
["KOKKU",{"$f":"SUM(B34:B36)","v":32499.99}]
[]
["Tabel 4. Projekti kulude prognoos meetmete lõikes (EUR) (kui kohaldub)"]
[null,"KOKKU"]
["Vastuvõtt/varjupaik",32499.99]
["Suutlikkus",0]
["KOKKU",{"$f":"SUM(B41:B41)","v":32499.99}]
[]
["Tabel 5. Projekti detailne eelarve (EUR)"]
["nr","Kululiik","Kulu detailne kirjeldus","Ühik","Kogus","Ühiku hind KM-ga","KOKKU"]
["PROJEKTI OTSESED KULUD"]
["1.","Tööjõukulud",{"$nulls":4},{"$f":"SUM(G49:G52)","v":20665.82}]
["1.1","Projektijuht (sõlmitakse käsundusleping või täiendava töö kokkulepe)","Tööaeg 13 töötundi kuus. Projekti sisuliste toodete ja tegevuste kvaliteedi tagamine, projekti üldkoordinatsioon. Projekti tööprotsesside juhtimine, Avalikud suhted ja projekti esindamine, projekti aruandlus. Sisaldab tööandjamakse","tund",{"$f":"11*13","v":143},18,{"$f":"SUM(E49*F49)","v":2574}]
["1.2","Projekti raamatupidaja (sõlmitakse kas käsundusleping või täiendava töö kokkulepe)","Tööaeg 10  töötundi kuus. Teostab projektiga seonduvaid finantstehinguid, aruandlust ja kontrolli. Sisaldab tööandjamakse","tund",{"$f":"10*11","v":110},13.4,{"$f":"SUM(E50*F50)","v":1474}]
["1.3.","Ekspert 1","Koolituse läbiviimine+ ettevalmistamine (sh materjalid). Sisaldab tööandjamakse, 13,6 tundi kuus\nkäsundus- või töövõtuleping","tund",{"$f":"11*13.61","v":149.70999999999998},55.5,{"$f":"ROUND(E51*F51,2)","v":8308.91}]
["1.4.","Ekspert 2","Koolituse läbiviimine+ ettevalmistamine (sh materjalid). Sisaldab tööandjamakse. 13,6 tundi kuus\nkäsundus- või töövõtuleping","tund",{"$f":"11*13.61","v":149.70999999999998},55.5,8308.91]
["2.","Lähetuskulud",{"$nulls":4},{"$f":"SUM(G54:G54)","v":2000}]
["2.1.","Projektimeeskonna lähetuskulud ","Projektijuhi ja ekspertide Eesti-sisesed lähetuskulud (sh transpordi ja majutuskulud) koolituste läbiviimiseks ja koordineerimiseks.","tk",10,200,{"$f":"ROUND(E54*F54,2)","v":2000}]
["3.","Sihtrühmaga seotud tegevused",{"$nulls":4},{"$f":"SUM(G56:G60)","v":6908}]
["3.1.","Koolitus ja meetoodiliste materjalide trükkimise kulud","3,75 eur/1 materjal","tk",400,3.75,{"$f":"ROUND(E56*F56,2)","v":1500}]
["3.2.","Koolitusmaterjalide kujundamine","kujundamine, interaktiivseks tegemine, veebisobilikuks tegemine jms ","tund",30,33.333300000000001,{"$f":"ROUND(E57*F57,2)","v":1000}]
["3.3.","Koolituse toitlustamine ","4 kohvipausi/6 eur 1 in","tk",8,200,1600]
["3.4.","Koolituse ruumide rent","Koolituse läbiviimiseks vajalike koolitusruumide rent. Sisaldab käibemaksu.","päev",8,151,1208]
["3.5.","Koolitatavate transpordikulud","Koolituse asukohas mitte töötavate ja elavate koolitatavate koolitusel osalemise kulud (sh transpordi ja majutuskulud)","tk",8,200,1600]
["4.","EL avalikustamise tegevused",{"$nulls":4},{"$f":"SUM(G62:G72)","v":800}]
["4.1.","Koolituse roll-up, plakat","1 plakat + 1 roll-up","tk",1,500,{"$f":"ROUND(E62*F62,2)","v":500}]
["4.2.","Logodega pastakad","pastakas ","tk",200,1.5,{"$f":"ROUND(E63*F63,2)","v":300}]
["5.","Allhanked",{"$nulls":4},{"$f":"SUM(G65:G66)","v":0}]
[{"$nulls":6},{"$f":"ROUND(E65*F65,2)","v":0}]
[{"$nulls":6},0]
["6.","Seadmed, kinnisvara",{"$nulls":4},{"$f":"SUM(G68:G69)","v":0}]
[{"$nulls":6},0]
[{"$nulls":6},0]
["7.","Muud otsesed kulud",{"$nulls":4},{"$f":"SUM(G71:G72)","v":0}]
[{"$nulls":6},0]
[{"$nulls":6},0]
["PROJEKTI OTSESED KULUD KOKKU",{"$nulls":5},{"$f":"SUM(G48,G53,G55,G61,G64,G67,G70)","v":30373.82}]
["PROJEKTI KAUDSED KULUD",{"$nulls":5},{"$f":"SUM(G73*0.07)","v":2126.1674000000003}]
["PROJEKTI KULUD KOKKU",{"$nulls":5},{"$f":"SUM(G73:G74)","v":32499.987399999998}]

{"sheet":"B. Maksetaotlus","index":1,"n_rows":45,"n_cols":8,"rows_kept":45,"cut":false,"hidden":false,"merged":[[14,4,15,4],[14,6,15,6],[37,0,38,6],[14,5,15,5],[24,7,26,7],[24,2,26,2],[24,0,26,1],[21,0,21,1],[32,0,32,1],[25,3,25,4],[25,5,25,6],[24,3,24,6],[14,3,15,3],[13,7,15,7],[13,3,13,6]]}
[{"$f":"IF(G23=0,\"\",IF(G23=100,\"\",\"Tähelepanu! Tabel 1. Projekti maksumus ja tulud allikate lõikes (EUR), osakaalude summa ei moodusta 100%\"))","v":""}]
[{"$f":"IF(D23=D37,\"\",\"Tähelepanu! Tabel 1. Projekti maksumus ja tulud allikate lõikes (EUR). Projekti tegelikud tulud kokku ei ole võrdne projekti tegelike kuludega.\")","v":""}]
[{"$f":"IF(C45=D37,\"\",\"Tähelepanu! Tabel 3. Projekti kulud meetmete lõikes (EUR) kokku ei ole võrdne Tabel 2. Kuluaruande koond tegelikud kulud kokku\")","v":""}]
["VARJUPAIGA-, RÄNDE- JA INTEGRATSIOONIFOND"]
["Maksetaotluse vorm"]
["Toetuse saaja:",null,"Sisekaitseakadeemia"]
["Projekti pealkiri:",null,"MIGRIB - usulisest, kultuurilisest ja rändetaustast lähtuv riskikäitumine: äratundmine, ennetamine, maandamine"]
["Projekti number:",null,"AMIF2016-11"]
["Toetuslepingu number:",null,"14-8.6/274-1"]
["Projekti aruandlusperiood:",null,"01.08.2016-31.10.2016"]
[]
[]
["Tabel 1. Projekti kavandatud maksed"]
[null,null,null,"Maksed",null,null,null,"Osakaal %"]
[null,null,null,"Toetusleping (punkt)","I","Toetusleping (punkt)","II"]
[null,"Rahastamisallikas","KOKKU"]
[1,"AMIF",{"$f":"'A. Eelarve'!C12","v":24374.99},"4.1.1.1",{"$f":"C17*50%","v":12187.495000000001},"4.1.2.1",{"$f":"C17*50%","v":12187.495000000001},75]
[2,"Riiklik kaasfinantseering",{"$f":"'A. Eelarve'!C13","v":8125},"4.1.1.2",{"$f":"C18*50%","v":4062.5},"4.1.2.2",{"$f":"C18*50%","v":4062.5},25]
[3,"Toetuse saaja omafinanantseering",{"$f":"'A. Eelarve'!C14","v":0},null,{"$f":"ROUND(C19*$E$16,2)","v":0},null,{"$f":"ROUND(C19*$G$16,2)","v":0},0]
[4,"Partnerite poolne kaasfinantseering",{"$f":"'A. Eelarve'!C15","v":0},null,{"$f":"ROUND(C20*$E$16,2)","v":0},null,{"$f":"ROUND(C20*$G$16,2)","v":0},0]
[5,"Projekti käigus saadud muud sissetulekud",{"$f":"'A. Eelarve'!C16","v":0},null,{"$f":"ROUND(C21*$E$16,2)","v":0},null,{"$f":"ROUND(C21*$G$16,2)","v":0},0]
["PROJEKTI MAKSUMUS KOKKU",null,{"$f":"SUM(C17:C21)","v":32499.99},null,{"$f":"SUM(E17:E21)","v":16249.995000000001},null,{"$f":"SUM(G17:G21)","v":16249.995000000001},100]
[]
["Tabel 2. Projekti jooksul laekunud maksed ja lõppmakse"]
["Rahastamisallikas",null,"KOKKU","Maksed",null,null,null,"Osakaal %"]
[null,null,null,"I",null,"II"]
[null,null,null,"Laekumise kuupäev pp/kk/aaaa","Summa","Laekumise kuupäev pp/kk/aaaa","Summa"]
[1,"AMIF",{"$f":"E28+G28","v":12187.5},"2016-09-07",12187.5,null,null,{"$f":"'A. Eelarve'!D12","v":75}]
[2,"Riiklik kaasfinantseering",{"$f":"E29+G29","v":4062.5},"2016-09-07",4062.5,null,null,{"$f":"'A. Eelarve'!D13","v":25}]
[3,"Toetuse saaja omafinanantseering",0,null,0,null,null,{"$f":"'A. Eelarve'!D14","v":0}]
[4,"Partnerite poolne kaasfinantseering",0,null,0,null,null,{"$f":"'A. Eelarve'!D15","v":0}]
[5,"Projekti käigus saadud muud sissetulekud",0,null,0,null,null,{"$f":"'A. Eelarve'!D16","v":0}]
["PROJEKTI MAKSUMUS KOKKU",null,{"$f":"SUM(C28:C32)","v":16250},null,{"$f":"SUM(E28:E32)","v":16250},null,{"$f":"SUM(G28:G32)","v":0},{"$f":"SUM(H28:H32)","v":100}]
[]
[]
[{"$f":"IF(G28=\"\",\"Vahemakse taotlus\",\"Lõppmakse taotlus\")","v":"Vahemakse taotlus"}]
[]
[{"$f":"IF(G28=\"\",\"Käesolevaga, võttes aluseks toetuslepingu punktid \"&F17&\" ja \"&F18&\", taotlen \"&B17&\" toetuse vahemakse \"&G17&\" eurot ja kaasfinantseeringu vahemakse \"&G18&\" eurot eraldamist lepingu punktis 4.2 nimetatud kontole\",IF(#REF!>0, \"Käesolevaga, võttes aluseks lepingu punktid \"&#REF!&\" ja \"&#REF!&\" ning kooskõlas projekti kuluaruandega, taotlen toetuse lõppmakse \"&#REF!&\" eurot ja kaasfinantseeringu lõppmakse \"&#REF!&\" eurot eraldamist lepingu punktis 4.2 nimetatud kontole.\",\"Käesolevaga, võttes aluseks lepingu punkti 4.1.4 ja kooskõlas projekti kuluaruandega teostan enammakstud toetuse \"&#REF!&\" eurot ja enammakstud kaasfinantseeringu \"&#REF!&\" eurot tagasimakse lepingu punktis 4.4 nimetatud kontole.\") )","v":"Käesolevaga, võttes aluseks toetuslepingu punktid 4.1.2.1 ja 4.1.2.2, taotlen AMIF toetuse vahemakse 12187,495 eurot ja kaasfinantseeringu vahemakse 4062,5 eurot eraldamist lepingu punktis 4.2 nimetatud kontole"}]
[]
[]
[]
["Toetuse saaja esindaja"]
[]
["Katri Raik"]
["/nimi, allkiri/"]

{"sheet":"C. KULUARUANDE KOOND","index":2,"n_rows":57,"n_cols":7,"rows_kept":57,"cut":false,"hidden":false,"merged":[[24,5,25,5],[24,0,25,0],[24,1,25,1],[52,0,52,1],[13,0,13,1],[20,0,20,1],[24,2,25,2],[24,4,25,4]]}
[{"$f":"IF(G21=0,\"\",IF(G21=100,\"\",\"Tähelepanu! Tabel 1. Projekti maksumus ja tulud allikate lõikes (EUR), osakaalude summa ei moodusta 100%\"))","v":""}]
[{"$f":"IF(D21=D36,\"\",\"Tähelepanu! Tabel 1. Projekti maksumus ja tulud allikate lõikes (EUR). Projekti tegelikud tulud kokku ei ole võrdne projekti tegelike kuludega.\")","v":""}]
[{"$f":"IF(C44=D36,\"\",\"Tähelepanu! Tabel 3. Projekti kulud meetmete lõikes (EUR) kokku ei ole võrdne Tabel 2. Kuluaruande koond tegelikud kulud kokku\")","v":""}]
["VARJUPAIGA-, RÄNDE- JA INTEGRATSIOONIFOND"]
["Kuluaruande vorm"]
["Toetuse saaja:","Sisekaitseakadeemia"]
["Projekti pealkiri:","MIGRIB - usulisest, kultuurilisest ja rändetaustast lähtuv riskikäitumine: äratundmine, ennetamine, maandamine"]
["Projekti number:","AMIF2016-11"]
["Toetuslepingu number:","14-8.6/274-1"]
["Projekti aruandlusperiood:","01.08.2016-31.10.2016"]
["Projekti valdkond:","Varjupaik"]
[]
[]
["Tabel 1. Projekti maksumus ja tulud allikate lõikes (EUR)"]
[null,"Rahastamisallikas","Projekti kavandatud tulud","Tegelikud tulud kokku","Aruandlus-perioodi 01/08/2016 - 31/10/2016 tulud","Aruandlus-perioodi pp/kk/aaaa - pp/kk/aaaa tulud","Osakaal %"]
[1,"AMIF",{"$f":"'A. Eelarve'!C12","v":24374.99},{"$f":"E16+F16","v":1495.67},{"$f":"ROUND($E$36*G16/100,2)","v":1495.67},{"$f":"ROUND($F$36*G16/100,2)","v":0},{"$f":"'A. Eelarve'!D12","v":75}]
[2,"Riiklik kaasfinantseering",{"$f":"'A. Eelarve'!C13","v":8125},{"$f":"E17+F17","v":498.56},{"$f":"ROUND($E$36*G17/100,2)","v":498.56},{"$f":"ROUND($F$36*G17/100,2)","v":0},{"$f":"'A. Eelarve'!D13","v":25}]
[3,"Toetuse saaja omafinanantseering",{"$f":"'A. Eelarve'!C14","v":0},0,{"$f":"ROUND($E$36*G18/100,2)","v":0},{"$f":"ROUND($F$36*G18/100,2)","v":0},{"$f":"'A. Eelarve'!D14","v":0}]
[4,"Partnerite poolne kaasfinantseering",{"$f":"'A. Eelarve'!C15","v":0},0,{"$f":"ROUND($E$36*G19/100,2)","v":0},{"$f":"ROUND($F$36*G19/100,2)","v":0},{"$f":"'A. Eelarve'!D15","v":0}]
[5,"Projekti käigus saadud muud sissetulekud",{"$f":"'A. Eelarve'!C16","v":0},0,{"$f":"ROUND($E$36*G20/100,2)","v":0},{"$f":"ROUND($F$36*G20/100,2)","v":0},{"$f":"'A. Eelarve'!D16","v":0}]
["PROJEKTI MAKSUMUS KOKKU",null,{"$f":"SUM(C16:C20)","v":32499.99},{"$f":"SUM(D16:D20)","v":1994.23},{"$f":"SUM(E16:E20)","v":1994.23},{"$f":"SUM(F16:F20)","v":0},{"$f":"SUM(G16:G20)","v":100}]
[]
[]
["Tabel 2. Kuluaruande koond (EUR)"]
["Rea nr","Kululiik","Kavandatud eelarve","Tegelikud kulud ","Aruandlus-perioodi 01/08/2016 - 31/10/2016 kulud","Aruandlus-perioodi 01/11/2016 - 30/06/2017 kulud","Eelarve täitmise %"]
[null,null,null,"Kokku"]
["1.","Tööjõukulud",{"$f":"'A. Eelarve'!G48","v":20665.82},{"$f":"SUM(E27:F27)","v":701.39999999999986},{"$f":"'C1. Tööjõukulud'!H36","v":701.39999999999986},{"$f":"'C1. Tööjõukulud'!H55","v":0},{"$f":"IFERROR(ROUND(D27/C27*100,2),0)","v":3.39}]
["2.","Lähetuskulud",{"$f":"'A. Eelarve'!G53","v":2000},{"$f":"SUM(E28,F28)","v":0},{"$f":"'C2. Lähetuskulud'!H23","v":0},{"$f":"'C2. Lähetuskulud'!H41","v":0},0]
["3.","Sihtrühmaga seotud tegevused",{"$f":"'A. Eelarve'!G55","v":6908},{"$f":"SUM(E29,F29)","v":974.34999999999991},{"$f":"' C3. Sihtrühmaga seotud kulud'!H19","v":974.34999999999991},{"$f":"' C3. Sihtrühmaga seotud kulud'!H37","v":0},14.1]
["4.","EL avalikustamise tegevused",{"$f":"'A. Eelarve'!G61","v":800},318.48,{"$f":"' C4. EL avalikustamise kulud'!H23","v":318.48},{"$f":"' C4. EL avalikustamise kulud'!H41","v":0},39.81]
["5.","Allhanked",{"$f":"'A. Eelarve'!G64","v":0},0,{"$f":"'C5. Allhanked'!H23","v":0},{"$f":"'C5. Allhanked'!H41","v":0},0]
["6.","Seadmed, kinnisvara",{"$f":"'A. Eelarve'!G67","v":0},0,{"$f":"'C6. Seadmed, kinnisvara'!H23","v":0},{"$f":"'C6. Seadmed, kinnisvara'!H41","v":0},0]
["7.","Muud otsesed kulud",{"$f":"'A. Eelarve'!G70","v":0},{"$f":"SUM(E33:F33)","v":0},{"$f":"'C7. Muud otsesed kulud'!H23","v":0},{"$f":"'C7. Muud otsesed kulud'!H41","v":0},0]
[null,"OTSESED KULUD ",{"$f":"SUM(C27:C30)","v":30373.82},{"$f":"SUM(D27:D30)","v":1994.2299999999998},{"$f":"SUM(E27:E30)","v":1994.2299999999998},0,{"$f":"IFERROR(ROUND(D34/C34*100,2),0)","v":6.57}]
[null,"KAUDSED KULUD",{"$f":"'A. Eelarve'!G74","v":2126.1674000000003},{"$f":"SUM(E35,F35)","v":0},0,0,0]
[null,"PROJEKTI KULUD KOKKU",{"$f":"SUM(C34:C35)","v":32499.987399999998},{"$f":"SUM(D34:D35)","v":1994.2299999999998},{"$f":"SUM(E34:E35)","v":1994.2299999999998},0,6.14]
[]
[]
["Tabel 3. Projekti kulud valdkondade lõikes (EUR) (kui kohaldub)"]
[null,"Kavandatud kulud","Tegelikud kulud KOKKU","Aruandlus-perioodi 01/08/2016 - 31/10/2016 kulud","Aruandlus-perioodi 01/11/2016 - 30/06/2017 kulud"]
["Varjupaik",{"$f":"'A. Eelarve'!B34","v":32499.99},{"$f":"D41+E41","v":1994.23},1994.23,0]
["Integratsioon",{"$f":"'A. Eelarve'!B35","v":0},{"$f":"D42+E42","v":0},0,0]
["Tagasipöördumine",{"$f":"'A. Eelarve'!B36","v":0},0,0,0]
["KOKKU",{"$f":"SUM(B41:B43)","v":32499.99},{"$f":"SUM(C41:C43)","v":1994.23},{"$f":"SUM(D41:D43)","v":1994.23},{"$f":"SUM(E41:E43)","v":0}]
[]
["Tabel 3. Projekti kulud meetmete lõikes (EUR) (kui kohaldub)"]
[null,"Kavandatud kulud","Tegelikud kulud KOKKU","Aruandlus-perioodi 01/08/2016 - 31/10/2016 kulud","Aruandlus-perioodi 01/11/2016 - 30/06/2017 kulud"]
[{"$f":"'A. Eelarve'!A41","v":"Vastuvõtt/varjupaik"},{"$f":"'A. Eelarve'!B41","v":32499.99},{"$f":"D48+E48","v":1994.23},1994.23,0]
[{"$f":"'A. Eelarve'!A42","v":"Suutlikkus"},{"$f":"'A. Eelarve'!B42","v":0},{"$f":"D49+E49","v":0},0,0]
["KOKKU",{"$f":"SUM(B48:B49)","v":32499.99},{"$f":"SUM(C48:C49)","v":1994.23},{"$f":"SUM(D48:D49)","v":1994.23},{"$f":"SUM(E48:E49)","v":0}]
[]
["Tabel 4. Toetuse saaja kinnitus "]
["Mina, toetuse saaja, kinnitan, et:",null,"VASTUS","SELGITUS"]
[1,"Projekti raames tehtud kulusid on rahastatud teistest allikatest (sh teistest Euroopa Liidu fondidest või programmidest)","Ei"]
[2,"Projekti raames on teenitud tulu","Ei"]
[3,"Kui projekti raames on teenitud tulu, siis see on maksetaotluses abikõlblikest kuludest maha arvatud","Ei kohaldu"]
[4,"Käibemaksukohuslase või mittekohuslase staatus on võrreldes toetuse taotluses tooduga muutunud","Ei"]

{"sheet":"C1. Tööjõukulud","index":3,"n_rows":56,"n_cols":8,"rows_kept":56,"cut":false,"hidden":false,"merged":[[55,0,55,2],[3,1,3,6],[3,7,5,7],[4,0,5,0],[4,1,4,6],[35,0,35,6],[54,0,54,6]]}
["1. Tööjõukulud"]
[]
[]
[null,"Projekti tegelikud kulud",{"$nulls":5},"Summa"]
["Rea nr","Kulu selgitus (Tabelisse lisada lahtreid vastavalt kuludokumentide arvule)"]
[null,"Kuludokumendi väljastaja","Kuludokumendi nimetus","Kuludokumendi number","Kuludokumendi kuupäev","Kulu tasumise kuupäev","Kulu lühikirjeldus"]
["1","Sisekaitseakadeemia","Tööajatabel",1,"2016-08-31","2016-08-31","Kert Valdaru Neto töötasu",168.45]
["1.1","Sisekaitseakadeemia","Tööajatabel",1,"2016-08-31","2016-09-12","Kert Valdaru Isiku töötuskindlustus",2.8]
["1.2","Sisekaitseakadeemia","Tööajatabel",1,"2016-08-31","2016-09-12","Kert Valdaru Isiku kogumispension",3.49]
["1.3","Sisekaitseakadeemia","Tööajatabel",1,"2016-08-31","2016-09-12","Kert Valdaru Isiku tulumaks",0]
["1.4","Sisekaitseakadeemia","Tööajatabel",1,"2016-08-31","2016-09-12","Kert Valdaru Tööandja sotsiaalmaks",57.66]
["1.5","Sisekaitseakadeemia","Tööajatabel",1,"2016-08-31","2016-09-12","Kert Valdaru Tööandja töötuskindlustus",1.4]
["2","Sisekaitseakadeemia","Tööajatabel",2,"2016-09-30","2016-09-30","Kert Valdaru Neto töötasu",168.45]
["2.1","Sisekaitseakadeemia","Tööajatabel",2,"2016-09-30","2016-10-10","Kert Valdaru Isiku töötuskindlustus",2.8]
["2.2","Sisekaitseakadeemia","Tööajatabel",2,"2016-09-30","2016-10-10","Kert Valdaru Isiku kogumispension",3.49]
["2.3","Sisekaitseakadeemia","Tööajatabel",2,"2016-09-30","2016-10-10","Kert Valdaru Isiku tulumaks",0]
["2.4","Sisekaitseakadeemia","Tööajatabel",2,"2016-09-30","2016-10-10","Kert Valdaru Tööandja sotsiaalmaks",57.66]
["2.5","Sisekaitseakadeemia","Tööajatabel",2,"2016-09-30","2016-10-10","Kert Valdaru Tööandja töötuskindlustus",1.4]
["3","Sisekaitseakadeemia","Tööajatabel",3,"2016-10-31","2016-10-31","Kert Valdaru Neto töötasu",168.44]
["3.1","Sisekaitseakadeemia","Tööajatabel",3,"2016-10-31","2016-11-10","Kert Valdaru Isiku töötuskindlustus",2.8]
["3.2","Sisekaitseakadeemia","Tööajatabel",3,"2016-10-31","2016-11-10","Kert Valdaru Isiku kogumispension",3.49]
["3.3","Sisekaitseakadeemia","Tööajatabel",3,"2016-10-31","2016-11-10","Kert Valdaru Isiku tulumaks",0]
["3.4","Sisekaitseakadeemia","Tööajatabel",3,"2016-10-31","2016-11-10","Kert Valdaru Tööandja sotsiaalmaks",57.67]
["3.5","Sisekaitseakadeemia","Tööajatabel",3,"2016-10-31","2016-11-10","Kert Valdaru Tööandja töötuskindlustus",1.4]
{"$rows_empty":11}
["Aruandlusperioodi 01/08/2016-31/10/2016 kulud kokku",{"$nulls":6},{"$f":"SUM(H7:H35)","v":701.39999999999986}]
{"$rows_empty":18}
["Aruandlusperioodi pp/kk/aaaa-pp/kk/aaaa kulud kokku",{"$nulls":6},{"$f":"SUM(H37:H54)","v":0}]
["Tööjõukulud kokku ",{"$nulls":6},{"$f":"H36+H55","v":701.39999999999986}]

{"sheet":"C2. Lähetuskulud","index":4,"n_rows":42,"n_cols":8,"rows_kept":42,"cut":false,"hidden":false,"merged":[[2,7,4,7],[22,0,22,6],[40,0,40,6],[41,0,41,2],[3,0,4,0],[2,1,2,6],[3,1,3,6]]}
["2. Lähetuskulud"]
[]
[null,"Projekti tegelikud kulud",{"$nulls":5},"Summa"]
["Rea nr","Kulu selgitus (Tabelisse lisada lahtreid vastavalt kuludokumentide arvule)"]
[null,"Kuludokumendi väljastaja","Kuludokumendi nimetus","Kuludokumendi number","Kuludokumendi kuupäev","Kulu tasumise kuupäev","Kulu lühikirjeldus"]
{"$rows_empty":17}
["Aruandlusperioodi pp/kk/aaaa-pp/kk/aaaa kulud kokku",{"$nulls":6},{"$f":"SUM(H6:H22)","v":0}]
{"$rows_empty":17}
["Aruandlusperioodi pp/kk/aaaa-pp/kk/aaaa kulud kokku",{"$nulls":6},{"$f":"SUM(H24:H40)","v":0}]
["Lähetuskulud kokku",{"$nulls":6},{"$f":"H23+H41","v":0}]

{"sheet":" C3. Sihtrühmaga seotud kulud","index":5,"n_rows":38,"n_cols":8,"rows_kept":38,"cut":false,"hidden":false,"merged":[[37,0,37,2],[2,1,2,6],[2,7,4,7],[3,0,4,0],[3,1,3,6],[18,0,18,6],[36,0,36,6]]}
["3. Sihtrühmaga seotud kulud"]
[]
[null,"Projekti tegelikud kulud",{"$nulls":5},"Summa"]
["Rea nr","Kulu selgitus (Tabelisse lisada lahtreid vastavalt kuludokumentide arvule)"]
[null,"Kuludokumendi väljastaja","Kuludokumendi nimetus","Kuludokumendi number","Kuludokumendi kuupäev","Kulu tasumise kuupäev","Kulu lühikirjeldus"]
[1100033573,"Q Catering OÜ","Arve",16710,"2016-10-26","2016-11-09","Kohvipausid 18.10 ja 25.10",345.6]
[1100034228,"Virumaa Suurköök OÜ","Arve","117116-LVR40","2016-10-27","2016-11-10","Rakvere koolitus",159.25]
[1100034227,"Virumaa Suurköök OÜ","Arve","117092-LVR40","2016-10-20","2016-11-09","Rakvere koolituse toitlustus",149.94999999999999]
[1100034229,"MeieMaitse OÜ","Arve","MA1600362","2016-10-28","2016-11-11","Kohvipausid 21.10 ja 28.10",319.55]
{"$rows_empty":9}
["Aruandlusperioodi 01/08/2016-31/10/2016 kulud kokku",{"$nulls":6},{"$f":"SUM(H6:H18)","v":974.34999999999991}]
{"$rows_empty":17}
["Aruandlusperioodi pp/kk/aaaa-pp/kk/aaaa kulud kokku",{"$nulls":6},{"$f":"SUM(H20:H36)","v":0}]
["Sihtühmaga seotud kulud",{"$nulls":6},{"$f":"H19+H37","v":974.34999999999991}]

{"sheet":" C4. EL avalikustamise kulud","index":6,"n_rows":42,"n_cols":8,"rows_kept":42,"cut":false,"hidden":false,"merged":[[41,0,41,2],[2,1,2,6],[2,7,4,7],[3,0,4,0],[3,1,3,6],[22,0,22,6],[40,0,40,6]]}
["4. EL avalikustamise kulud"]
[]
[null,"Projekti tegelikud kulud",{"$nulls":5},"Summa"]
["Rea nr","Kulu selgitus (Tabelisse lisada lahtreid vastavalt kuludokumentide arvule)"]
[null,"Kuludokumendi väljastaja","Kuludokumendi nimetus","Kuludokumendi number","Kuludokumendi kuupäev","Kulu tasumise kuupäev","Kulu lühikirjeldus"]
[1100033148,"Stillabunt OÜ","Arve",12518,"2016-10-10","2016-10-31","Roll-up ja plakatid",108]
[1100029217,"L&L Reklaam OÜ","Arve",1609015,"2016-09-16","2016-10-10","Meened (kleebised ja kirjutusvahendid)",210.48]
{"$rows_empty":15}
["Aruandlusperioodi 01/08/2016-31/10/2016 kulud kokku",{"$nulls":6},{"$f":"SUM(H6:H22)","v":318.48}]
{"$rows_empty":17}
["Aruandlusperioodi pp/kk/aaaa-pp/kk/aaaa kulud kokku",{"$nulls":6},{"$f":"SUM(H24:H40)","v":0}]
["EL avalikustamise kulud kokku",{"$nulls":6},{"$f":"H23+H41","v":318.48}]

{"sheet":"C5. Allhanked","index":7,"n_rows":42,"n_cols":8,"rows_kept":42,"cut":false,"hidden":false,"merged":[[41,0,41,2],[2,1,2,6],[2,7,4,7],[3,0,4,0],[3,1,3,6],[22,0,22,6],[40,0,40,6]]}
["5. Allhanked"]
[]
[null,"Projekti tegelikud kulud",{"$nulls":5},"Summa"]
["Rea nr","Kulu selgitus (Tabelisse lisada lahtreid vastavalt kuludokumentide arvule)"]
[null,"Kuludokumendi väljastaja","Kuludokumendi nimetus","Kuludokumendi number","Kuludokumendi kuupäev","Kulu tasumise kuupäev","Kulu lühikirjeldus"]
{"$rows_empty":17}
["Aruandlusperioodi pp/kk/aaaa-pp/kk/aaaa kulud kokku",{"$nulls":6},{"$f":"SUM(H6:H22)","v":0}]
{"$rows_empty":17}
["Aruandlusperioodi pp/kk/aaaa-pp/kk/aaaa kulud kokku",{"$nulls":6},{"$f":"SUM(H24:H40)","v":0}]
["Allhangetega seotud kulud kokku",{"$nulls":6},{"$f":"H23+H41","v":0}]

{"sheet":"C6. Seadmed, kinnisvara","index":8,"n_rows":42,"n_cols":8,"rows_kept":42,"cut":false,"hidden":false,"merged":[[41,0,41,2],[2,1,2,6],[2,7,4,7],[3,0,4,0],[3,1,3,6],[22,0,22,6],[40,0,40,6]]}
["6. Seadmed/kinnisvara"]
[]
[null,"Projekti tegelikud kulud",{"$nulls":5},"Summa"]
["Rea nr","Kulu selgitus (Tabelisse lisada lahtreid vastavalt kuludokumentide arvule)"]
[null,"Kuludokumendi väljastaja","Kuludokumendi nimetus","Kuludokumendi number","Kuludokumendi kuupäev","Kulu tasumise kuupäev","Kulu lühikirjeldus"]
{"$rows_empty":17}
["Aruandlusperioodi pp/kk/aaaa-pp/kk/aaaa kulud kokku",{"$nulls":6},{"$f":"SUM(H6:H22)","v":0}]
{"$rows_empty":17}
["Aruandlusperioodi pp/kk/aaaa-pp/kk/aaaa kulud kokku",{"$nulls":6},{"$f":"SUM(H24:H40)","v":0}]
["Seadmete/kinnisvaraga seotud kulud kokku",{"$nulls":6},{"$f":"H23+H41","v":0}]

{"sheet":"C7. Muud otsesed kulud","index":9,"n_rows":42,"n_cols":8,"rows_kept":42,"cut":false,"hidden":false,"merged":[[41,0,41,2],[2,1,2,6],[2,7,4,7],[3,0,4,0],[3,1,3,6],[22,0,22,6],[40,0,40,6]]}
["7. Muud otsesed kulud"]
[]
[null,"Projekti tegelikud kulud",{"$nulls":5},"Summa"]
["Rea nr","Kulu selgitus (Tabelisse lisada lahtreid vastavalt kuludokumentide arvule)"]
[null,"Kuludokumendi väljastaja","Kuludokumendi nimetus","Kuludokumendi number","Kuludokumendi kuupäev","Kulu tasumise kuupäev","Kulu lühikirjeldus"]
{"$rows_empty":17}
["Aruandlusperioodi pp/kk/aaaa-pp/kk/aaaa kulud kokku",{"$nulls":6},{"$f":"SUM(H6:H22)","v":0}]
{"$rows_empty":17}
["Aruandlusperioodi pp/kk/aaaa-pp/kk/aaaa kulud kokku",{"$nulls":6},{"$f":"SUM(H24:H40)","v":0}]
["Muud otsesed kulud kokku",{"$nulls":6},{"$f":"H23+H41","v":0}]

{"sheet":"Nähtamatu leht","index":10,"n_rows":14,"n_cols":1,"rows_kept":14,"cut":false,"hidden":true,"merged":[]}
["Varjupaik"]
["Integratsioon"]
["Tagasipöördumine"]
[]
[]
["tund"]
["päev"]
["kuu"]
["tk"]
[]
[]
["Jah"]
["Ei"]
["Ei kohaldu"]